Cogmind - Beta 15 @@@ ROGUE MODE // 2025.08.20 @ 20:12:47 Player: Mogwok Wargfriend Result: Destroyed by B-75 Beast with Magnetic Acceleration Cannon Performance ------------- Evolutions (2) 1000 Regions Visited (8) 1600 Robots Destroyed (125) 625 Value Destroyed (2800) 2800 Prototype IDs (44) 880 Alien Tech Used (0) 0 Bonus (651) 651 TOTAL SCORE: 7556 Bonus ------- High Alert Combat Kills 151 Entered Garrisons 200 Aligned with FarCom 300 Cogmind --------- Core Integrity 0/550 Matter 247/300 Energy 100/100 System Corruption 0% Temperature Cool (12) Movement Core (700) Ox13 Location -8/Garrison Parts ------- > --- POWER (1) -------- (None) > --- PROPULSION (3) --- (None) > --- UTILITY (5) ------ High-capacity Storage Unit > --- WEAPON (2) ------- (None) > --- INVENTORY (20) --- Improved Ion Engine Light Nuclear Core Heat Sink High-capacity Storage Unit Heavy Assault Rifle Heavy Assault Rifle Improved Assault Rifle Improved Datajack Heavy Flail Katana Peak State ------------ > --- POWER ------------ Improved Ion Engine > --- PROPULSION ------- Light Treads Improved Carbon-fiber Leg Wheel > --- UTILITY ---------- Improved Heat Sink High-capacity Storage Unit Light Armor Plating Hacking Suite System Shield > --- WEAPON ----------- Advanced Beam Cannon Guided Plasma Cannon > --- INVENTORY -------- Improved Ion Engine Light Nuclear Core Light Treads Wheel Heat Sink High-capacity Storage Unit High-capacity Matter Pod Weapon Shielding Bomb Drone Bay Heavy Assault Rifle Heavy Assault Rifle Improved Assault Rifle Rocket Launcher Mini Grenade Launcher Improved Datajack Heavy Flail Katana [Rating: 34] Favorites ----------- Power Heavy Ion Engine Engine Heavy Ion Engine Power Core Light Nuclear Core Propulsion Light Treads Treads Light Treads Leg Improved Carbon-fiber Leg Wheel Wheel Flight Unit Improved Flight Unit Utility High-capacity Storage Unit Device Improved Heat Sink Storage High-capacity Storage Unit Hackware Hacking Suite Protection Core Shielding Weapon Assault Rifle Energy Gun Beam Rifle Energy Cannon Advanced Beam Cannon Ballistic Gun Assault Rifle Launcher Mini Grenade Launcher Special Weapon Mining Laser Impact Weapon Hammer Special Melee Weapon Datajack Build | -11 -10 -10 -9 -9 -9 -8 -8 -8 ------- Run | Yrd Mat Min Mat Min Exi Min Mat Gar Slots Evolved 4 | . . . 2 . . . 2 . Power . | . . . . . . . . . Propulsion 1 | . . . 1 . . . . . Utility 3 | . . . 1 . . . 2 . Weapon . | . . . . . . . . . Parts Attached 102 | 7 15 4 40 6 1 2 11 16 Power 10 | 1 1 3 4 . . . . 1 Engine 9 | 1 1 2 4 . . . . 1 Core 1 | . . 1 . . . . . . Reactor . | . . . . . . . . . Propulsion 37 | 2 5 1 18 3 . 1 1 6 Treads 18 | 1 1 . 13 1 . . . 2 Leg 3 | . 1 . . . . . . 2 Wheel 15 | 1 3 1 4 2 . 1 1 2 Hover . | . . . . . . . . . Flight 1 | . . . 1 . . . . . Utility 25 | 2 3 . 7 1 1 . 7 4 Device 10 | 1 1 . 3 . . . 3 2 Storage 7 | 1 1 . 2 . 1 . 1 1 Processor . | . . . . . . . . . Hackware 3 | . . . 1 . . . 2 . Protection 5 | . 1 . 1 1 . . 1 1 Artifact . | . . . . . . . . . Weapon 30 | 2 6 . 11 2 . 1 3 5 Energy Gun 4 | 1 . . 3 . . . . . Energy Cannon 3 | . . . 1 . . . 1 1 Ballistic Gun 14 | 1 4 . 5 . . 1 1 2 Ballistic Cannon . | . . . . . . . . . Launcher 3 | . . . . 2 . . . 1 Special Weapon 1 | . . . . . . . 1 . Impact Weapon 3 | . 1 . 2 . . . . . Slashing Weapon . | . . . . . . . . . Piercing Weapon . | . . . . . . . . . Special Melee Weapon 2 | . 1 . . . . . . 1 Unidentified Prototypes 3 | . . . 2 . . . . 1 Parts Lost 42 | . 4 2 8 3 . 3 2 20 Power 4 | . 1 1 1 . . . . 1 Propulsion 16 | . . 1 3 2 . 2 1 7 Utility 14 | . 1 . 3 1 . . 1 8 Weapon 8 | . 2 . 1 . . 1 . 4 Highest Loss Streak 18 | . 2 1 3 3 . 3 2 18 To Critical Strikes 1 | . 1 . . . . . . . Average Backups 18 | 4 17 19 18 18 19 18 17 18 Power 1 | . 1 1 1 1 1 1 1 2 Propulsion 4 | 1 4 4 3 5 6 5 4 3 Utility 4 | . 5 5 5 4 4 4 3 4 Weapon 7 | 1 6 7 7 7 8 8 7 7 Tool/Special . | . . . . . . . . . Unused Backups 35 | . 13 4 8 1 . . 1 8 Power 2 | . . . . . . . . 2 Propulsion 8 | . 3 1 2 . . . 1 1 Utility 8 | . 3 3 1 . . . . 1 Weapon 17 | . 7 . 5 1 . . . 4 Tool/Special . | . . . . . . . . . Average Slot Usage (%) 98 | . 98 99 99 99 100 95 94 98 Engine 9 | . 13 7 8 11 11 11 9 8 Core 1 | . . 6 2 . . . . . Treads 17 | . 13 14 21 21 22 22 13 8 Leg 1 | . . . . . . . . 6 Wheel 11 | . 14 14 10 11 11 11 12 11 Device 8 | . 6 . 10 11 11 11 8 8 Storage 11 | . 14 14 11 11 11 11 11 9 Hackware 4 | . . . 2 . . . 12 17 Protection 9 | . 6 14 8 11 11 11 9 8 Energy Gun 1 | . 3 . 3 . . . . . Energy Cannon 4 | . . . 6 6 . . 6 8 Ballistic Gun 12 | . 23 27 11 6 . 3 9 8 Launcher 1 | . . . . 9 . . . . Impact Weapon 1 | . . . . . 11 11 . . Peak Build Rating 34 | 8 9 13 23 21 18 20 28 34 Average Rating 18 | 5 8 11 19 20 17 18 24 28 On Entrance 14 | . 8 9 12 21 17 18 20 28 Naked Turns . | . . . . . . . . . Heaviest Build 69 | 15 50 50 59 59 53 55 60 69 Greatest Support 40 | 10 10 10 40 16 16 16 20 20 Greatest Overweight (x) 22 | 1 4 4 18 5 3 5 5 22 Average Overweight (x) 4 | . 3 4 5 3 3 3 3 4 Largest Inventory Capacity 20 | 8 20 20 20 20 20 20 20 20 Average Capacity 19 | 7 18 20 20 20 20 20 20 20 Most Carried 20 | 8 20 20 20 20 20 20 20 20 Average Carried 19 | 4 17 19 19 19 20 19 18 19 Final Capacity 20 | 8 20 20 20 20 20 20 20 20 Final Carried 20 | 8 20 19 20 20 20 18 20 17 Class Distribution -------------------- 51% | Scavenger-Mutant 48% | Mutant Dominant Class ---------------- Mutant | -10/Materials Mutant | -10/Mines Scavenger-Mutant | -9/Materials Scavenger-Mutant | -9/Mines Mutant | -9/Exiles Mutant | -8/Mines Scavenger-Mutant | -8/Materials Scavenger-Mutant | -8/Garrison Resources | -11 -10 -10 -9 -9 -9 -8 -8 -8 ----------- Run | Yrd Mat Min Mat Min Exi Min Mat Gar Matter Collected 3244 | 364 619 214 1137 415 30 24 150 291 Remotely 209 | . 209 . . . . . . . Salvage Created 4644 | 195 745 370 2304 190 . 52 183 605 Parts 286 | 12 37 15 145 18 . 2 15 42 Haulers Intercepted 8 | . 2 . 6 . . . . . Recyclers Shooed 7 | . 2 . 3 1 . . 1 . Parts Field Recycled . | . . . . . . . . . Retrieved Matter . | . . . . . . . . . Parts Self-Destructed . | . . . . . . . . . Prevented . | . . . . . . . . . Kills | -11 -10 -10 -9 -9 -9 -8 -8 -8 ------- Run | Yrd Mat Min Mat Min Exi Min Mat Gar Combat Hostiles Destroyed 79 | . 12 5 31 13 . 1 3 14 Guns 48 | . 12 5 21 4 . . 1 5 Cannons 22 | . . . 9 2 . . 2 9 AOE 7 | . . . 1 6 . . . . Classes Destroyed 15 | 3 6 . 3 1 . 1 . 1 Worker 12 | 2 1 . 8 1 . . . . Builder 3 | . 1 . 1 1 . . . . Tunneler 4 | 3 . . . . . . 1 . Hauler 8 | . 2 . 6 . . . . . Recycler 12 | 1 3 2 5 1 . . . . Mechanic 2 | . . . 1 . . . 1 . Operator 4 | . 1 . 3 . . . . . Watcher 8 | . 3 . 5 . . . . . Swarmer 21 | . 9 . 3 6 . . . 3 Grunt 31 | . 3 5 16 . . . 2 5 Brawler 3 | . . . 2 . . . . 1 Duelist 3 | . . . . . . 1 . 2 Sentry 13 | . . . 10 . . . 1 2 Specialist 1 | . . . . . . . . 1 Assembled 7 | . . . . 7 . . . . Best Kill Streak 7 | 4 7 2 7 5 . 1 2 3 Combat Bots Only 7 | . 6 2 7 5 . 1 2 3 Max Kills in Single Turn 2 | 1 2 2 2 1 . 1 2 1 Gunslinging 1 | . 1 . 1 . . . . . Exploded 1 | . . . 1 1 . . . . Melee . | . . . . . . . . . Uniques/NPCs Destroyed . | . . . . . . . . . Combat | -11 -10 -10 -9 -9 -9 -8 -8 -8 -------- Run | Yrd Mat Min Mat Min Exi Min Mat Gar Hostile Shots Fired 586 | . 103 32 199 69 . 38 11 134 Missed 161 | . 29 12 55 19 . 12 3 31 Hits 425 | . 74 20 144 50 . 26 8 103 Melee 6 | . . . 2 1 . 2 . 1 Projectile 419 | . 74 20 142 49 . 24 8 102 AOE 1 | . . . . . . . . 1 Critical Strikes 15 | . 1 . 6 1 . 1 . 6 Actively Blocked 2 | . . . 2 . . . . . Damage Taken 6495 | . 807 290 1814 621 . 375 117 2471 Core 988 | . 125 11 220 38 . 29 13 552 Absorbed by Shields 9 | . . . . . . . . 9 Redirected to Shielding 105 | . 3 2 46 15 . 11 8 20 Core Remaining (%) 57 | 100 . 45 . . . 28 . . Volleys Fired 455 | 13 69 23 159 39 . 2 27 123 Largest 2 | 2 2 2 2 2 . 1 2 2 Hottest 120 | 70 70 40 91 91 . 25 100 120 Shots Fired 805 | 23 135 46 318 72 . 2 39 170 Gun 539 | 23 135 46 249 25 . 2 14 45 Cannon 226 | . . . 69 25 . . 12 120 Launcher 27 | . . . . 22 . . . 5 Special 13 | . . . . . . . 13 . Kinetic 421 | 13 107 46 169 25 . 2 14 45 Thermal 357 | 10 28 . 149 25 . . 25 120 Explosive 27 | . . . . 22 . . . 5 Electromagnetic . | . . . . . . . . . Robot Hit Streak 13 | 7 7 10 13 5 . 2 4 10 Robot Miss Streak 6 | 1 5 3 3 6 . 2 2 3 Penetration Max . | . . . . . . . . . Secondary Targets 5 | . 3 1 1 . . . . . Max Gunslinging Chain 1 | . 1 1 1 . . . . . Shots Hit Robots 444 | 16 86 33 196 25 12 4 16 56 Core Hits 184 | 7 31 15 79 21 . 1 8 22 Critical Kills 2 | . 1 . . 1 . . . . Critical Parts Destroyed 1 | . . . 1 . . . . . Critical Strikes 11 | 1 3 . 6 1 . . . . Burn 8 | 1 2 . 5 . . . . . Meltdown 1 | . . . . 1 . . . . Destroy 2 | . 1 . 1 . . . . . Melee Attacks 47 | . 9 1 20 . 12 5 . . Impact 34 | . 9 . 20 . . 5 . . Slashing . | . . . . . . . . . Piercing . | . . . . . . . . . Sneak Attacks 12 | . . 1 . . 11 . . . Combat Hostiles . | . . . . . . . . . Follow-up Attacks . | . . . . . . . . . Damage Inflicted 7887 | 202 1142 422 3573 748 . 124 302 1374 Guns 4688 | 202 1142 422 2199 179 . 26 152 366 Cannons 1950 | . . . 801 195 . . 150 804 Explosions 1151 | . . . 573 374 . . . 204 Melee 98 | . . . . . . 98 . . Ramming . | . . . . . . . . . Kinetic 3614 | 115 930 422 1424 179 . 26 152 366 Thermal 3597 | 87 212 . 2149 195 . . 150 804 Explosive 578 | . . . . 374 . . . 204 Electromagnetic . | . . . . . . . . . Impact 98 | . . . . . . 98 . . Slashing . | . . . . . . . . . Piercing . | . . . . . . . . . Highest Corruption 5 | . . . 5 5 5 5 . . Average Corruption 5 | . . . 5 5 5 5 . . Corruption Purged . | . . . . . . . . . Corruption Blocked . | . . . . . . . . . Effects 131 | . . . 78 39 12 2 . . Message Errors 29 | . . . 18 7 3 1 . . Matter Fused 27 | . . . 20 6 1 . . . Heat Flow Errors 18 | . . . 7 8 3 . . . Energy Discharges 9 | . . . 5 2 2 . . . Parts Rejected 1 | . . . . 1 . . . . Parts Fused 2 | . . . 1 . 1 . . . Data Loss (minor) 17 | . . . 9 7 . 1 . . Data Loss (major) 12 | . . . 7 4 1 . . . Misfires 6 | . . . 4 2 . . . . Alerts 6 | . . . 4 1 1 . . . Weapon Failures 4 | . . . 3 1 . . . . Overload Shots . | . . . . . . . . . Overflow Damage 226 | . . . 189 11 . 26 . . Projectiles 13 | . . . 10 3 . . . . Explosions 187 | . . . 179 8 . . . . Melee 26 | . . . . . . 26 . . Knockbacks 1 | . . . . . . 1 . . Impact 1 | . . . . . . 1 . . Kinetic . | . . . . . . . . . Secondary . | . . . . . . . . . Self-Inflicted Damage 109 | . . . . 109 . . . . Shots 3 | . . . . 3 . . . . Rammed . | . . . . . . . . . Targets Rammed . | . . . . . . . . . Kicked . | . . . . . . . . . Crushed . | . . . . . . . . . Highest Temperature 297 | 54 79 2 272 248 253 . 38 297 Average Temperature 63 | 21 25 1 85 91 95 . 10 68 Received Heat Transfer 2098 | . 273 159 714 . . 90 54 808 Effects 3 | . . . . 1 . . . 2 Energy Bleed 1 | . . . . 1 . . . . Interference 2 | . . . . . . . . 2 Siege Activations . | . . . . . . . . . Martial Activations . | . . . . . . . . . Shielding Activations . | . . . . . . . . . Robots Disrupted . | . . . . . . . . . Combat Hostiles . | . . . . . . . . . Robots Corrupted 1 | . . . . . . 1 . . Combat Hostiles 1 | . . . . . . 1 . . Parts Fried 1 | . . . . . . 1 . . Impact Corruptions 1 | . . . . . . 1 . . Robots Melted 1 | . . . . 1 . . . . Combat Hostiles 1 | . . . . 1 . . . . Parts Melted 10 | 2 1 . 6 1 . . . . Heat Transferred 7165 | 333 740 . 4037 333 . . 259 1463 Parts Sabotaged . | . . . . . . . . . Parts Stolen . | . . . . . . . . . Parts Stripped . | . . . . . . . . . Power Chain Reactions . | . . . . . . . . . Alert | -11 -10 -10 -9 -9 -9 -8 -8 -8 ------- Run | Yrd Mat Min Mat Min Exi Min Mat Gar Maximum Alert Level 3 | . . . 3 1 . . . 2 Low Security (%) 60 | 100 100 100 35 51 . 100 100 42 Level 1 16 | . . . 18 48 . . . 18 Level 2 14 | . . . 19 . . . . 39 Level 3 8 | . . . 26 . . . . . Level 4 . | . . . . . . . . . Level 5 . | . . . . . . . . . High Security . | . . . . . . . . . Max Security . | . . . . . . . . . Peak Influence 764 | 10 110 50 764 360 . 30 50 691 Initial 285 | . . . . 285 . . . 27 Average 211 | 2 21 5 369 205 . 5 6 291 Influence Increases 3141 | 30 424 140 1220 391 . 30 137 769 Destroy 0b10 Robot/C 1440 | . 240 100 620 120 . 20 60 280 Destroy 0b10 Robot/NC 260 | 30 55 10 140 15 . . 10 . Destroy Leader 332 | . 50 30 202 10 . 10 20 10 Trap Triggered on 0b10 20 | . . . 10 . . . . 10 Successful Hack 142 | . 45 . 62 5 . . 6 24 Disable Machine 150 | . 30 . 75 15 . . 30 . Anti-Garrison Action 300 | . . . . . . . . 300 Destroy Structure 302 | . 4 . 36 136 . . 11 115 Lose Combat Pursuer 195 | . . . 75 90 . . . 30 Influence Decreases 2605 | 30 424 140 489 1002 120 30 95 275 Entered New Map 581 | . . . . 446 120 . . 15 Time Decay 1594 | 30 384 130 419 526 . 10 95 . Lost Part 370 | . 40 10 70 30 . 20 . 200 Lost Ally 60 | . . . . . . . . 60 Squads Dispatched 4 | . . . 3 . . . 1 . Investigation . | . . . . . . . . . Extermination . | . . . . . . . . . Reinforcement 2 | . . . 2 . . . . . Assault 1 | . . . 1 . . . . . Garrison 1 | . . . . . . . 1 . Intercept . | . . . . . . . . . Searches Triggered . | . . . . . . . . . Construction Impeded . | . . . . . . . . . Haulers Reinforced . | . . . . . . . . . Active Scanning Responses . | . . . . . . . . . Cargo Convoy Interrupts . | . . . . . . . . . Stealth | -11 -10 -10 -9 -9 -9 -8 -8 -8 --------- Run | Yrd Mat Min Mat Min Exi Min Mat Gar Distress Signals 4 | . . . 3 . . . 1 . Communications Jammed . | . . . . . . . . . Distress Signals . | . . . . . . . . . Times Spotted 121 | . 22 8 42 18 . 4 8 19 Peak Tracking Total 6 | . 6 2 6 4 . 4 3 5 Tactical Retreats 13 | . . . 5 7 . . . 1 Traps | -11 -10 -10 -9 -9 -9 -8 -8 -8 ------- Run | Yrd Mat Min Mat Min Exi Min Mat Gar Traps Triggered 10 | . 3 . 1 . . . . 6 Indirectly . | . . . . . . . . . Trap Hack Attempts 100 | . 60 . 24 . . . . 16 Triggered . | . . . . . . . . . Disarmed 1 | . . . . . . . . 1 Reprogrammed 8 | . 5 . 2 . . . . 1 Reused 2 | . . . 1 . . . . 1 Traps Extracted . | . . . . . . . . . Installed . | . . . . . . . . . Triggered 2 | . . . 1 . . . . 1 Machines | -11 -10 -10 -9 -9 -9 -8 -8 -8 ---------- Run | Yrd Mat Min Mat Min Exi Min Mat Gar Machines Disabled 11 | . 2 . 5 1 . . 2 1 Max in Single Turn 4 | . 1 . 4 1 . . 1 . Machines Repaired . | . . . . . . . . . Machines Dismantled . | . . . . . . . . . Machines Sabotaged . | . . . . . . . . . Overloaded Fab Kills . | . . . . . . . . . Hacking | -11 -10 -10 -9 -9 -9 -8 -8 -8 --------- Run | Yrd Mat Min Mat Min Exi Min Mat Gar Machines Accessed 31 | . 10 1 11 2 2 . 3 2 Terminals 20 | . 8 . 7 2 . . 1 2 Fabricators . | . . . . . . . . . Repair Stations 1 | . . . 1 . . . . . Recycling Units 5 | . 2 . 2 . . . 1 . Scanalyzers 1 | . . . 1 . . . . . Garrison Access 1 | . . . . . . . 1 . Total Hacks 114 | . 37 1 31 10 24 . 7 4 Successful 73 | . 21 1 18 4 24 . 3 2 Failed 40 | . 15 . 13 6 . . 4 2 Catastrophic 4 | . 2 . 2 . . . . . Database Lockouts 1 | . 1 . . . . . . . Manual 62 | . 30 . 20 6 1 . 5 . Terminals 63 | . 32 . 15 10 . . 2 4 Fabricators . | . . . . . . . . . Repair Stations 2 | . . . 2 . . . . . Recycling Units 15 | . 5 . 9 . . . 1 . Scanalyzers 5 | . . . 5 . . . . . Garrison Access 4 | . . . . . . . 4 . Terminal Hacks 41 | . 9 1 1 3 24 . 1 2 Record 24 | . . . . 1 23 . . . Robot Analysis 3 | . 2 . . 1 . . . . Prototype ID Bank 2 | . 2 . . . . . . . Open Door 1 | . . 1 . . . . . . Branch Access Points 2 | . . . 1 . . . 1 . Emergency Access Points 1 | . . . . . . . . 1 Terminal Index 1 | . 1 . . . . . . . Locate Traps 2 | . 2 . . . . . . . Assault Status 1 | . 1 . . . . . . . Registered Components 1 | . 1 . . . . . . . Zone Layout 1 | . . . . 1 . . . . Patrol Navigation 1 | . . . . . . . . 1 Proto ID Catalog 1 | . . . . . 1 . . . Fabricator Hacks . | . . . . . . . . . Repair Station Hacks . | . . . . . . . . . Recycling Unit Hacks 5 | . 3 . 2 . . . . . Process 1 | . 1 . . . . . . . Report Inventory 2 | . 1 . 1 . . . . . Retrieve Matter 1 | . 1 . . . . . . . Retrieve Components 1 | . . . 1 . . . . . Scanalyzer 4 | . . . 4 . . . . . Insert Component 2 | . . . 2 . . . . . Analyze 2 | . . . 2 . . . . . Garrison Access Hacks 1 | . . . . . . . 1 . Unlock Access 1 | . . . . . . . 1 . Unauthorized Hacks 22 | . 9 . 11 1 . . 1 . Terminals 15 | . 7 . 7 1 . . . . Assimilate 3 | . . . 3 . . . . . Botnet 9 | . 5 . 3 1 . . . . Operators 3 | . 2 . 1 . . . . . Fabricators . | . . . . . . . . . Repair Stations . | . . . . . . . . . Recycling Units 7 | . 2 . 4 . . . 1 . Monitor 1 | . . . 1 . . . . . Reject 5 | . 2 . 2 . . . 1 . Recyclers 1 | . . . 1 . . . . . Scanalyzers . | . . . . . . . . . Garrison Access . | . . . . . . . . . Data Cores Recovered . | . . . . . . . . . Used . | . . . . . . . . . Hacking Detections 22 | . 8 . 9 2 . . 3 . Full Trace Events 1 | . . . 1 . . . . . Feedback Events . | . . . . . . . . . Feedback Blocked . | . . . . . . . . . Robot Schematics Acquired . | . . . . . . . . . Robots Built . | . . . . . . . . . Authchips . | . . . . . . . . . Time . | . . . . . . . . . Total Robot Build Rating . | . . . . . . . . . Part Schematics Acquired 2 | . . . 2 . . . . . Parts Built . | . . . . . . . . . Authchips . | . . . . . . . . . Time . | . . . . . . . . . Total Part Build Rating . | . . . . . . . . . Parts Repaired . | . . . . . . . . . Time . | . . . . . . . . . Parts Recycled . | . . . . . . . . . Recycled Matter 241 | . 241 . . . . . . . Retrieved Matter 438 | . 438 . . . . . . . Retrieved Components 4 | . . . 4 . . . . . Parts Scanalyzed 2 | . . . 2 . . . . . Part Schematics Acquired 2 | . . . 2 . . . . . Parts Damaged 1 | . . . 1 . . . . . Bothacking | -11 -10 -10 -9 -9 -9 -8 -8 -8 ------------ Run | Yrd Mat Min Mat Min Exi Min Mat Gar Used RIF Installer . | . . . . . . . . . Robots Hacked 12 | . . 1 . . 11 . . . Non-combat 3 | . . . . . 3 . . . Combat 9 | . . 1 . . 8 . . . Robot Hacks Applied 12 | . . 1 . . 11 . . . parse_system 12 | . . 1 . . 11 . . . Relay Couplers Released . | . . . . . . . . . Fabnet Peak Effective % . | . . . . . . . . . Robots Rewired . | . . . . . . . . . Allies Hacked . | . . . . . . . . . Hacks Repelled . | . . . . . . . . . Allies | -11 -10 -10 -9 -9 -9 -8 -8 -8 -------- Run | Yrd Mat Min Mat Min Exi Min Mat Gar Total Allies 2 | . . . 1 . . . . 1 Largest Group 1 | . . . 1 . . . . 1 Highest-Rated Group 31 | . . . 10 . . . . 31 Highest-Rated Ally 31 | . . . 10 . . . . 31 Total Orders . | . . . . . . . . . Ally Attacks 8 | . . . . . . . . 8 Total Damage 43 | . . . . . . . . 43 Kills . | . . . . . . . . . Allies Corrupted . | . . . . . . . . . Allies Melted . | . . . . . . . . . Intel | -11 -10 -10 -9 -9 -9 -8 -8 -8 ------- Run | Yrd Mat Min Mat Min Exi Min Mat Gar Active Infowar (turns) 1340 | 34 373 . 933 . . . . . Sensors 933 | . . . 933 . . . . . Seismic 407 | 34 373 . . . . . . . Robot Analysis Total 3 | . 2 . . 1 . . . . Derelict Logs Recovered 2 | . . 1 . 1 . . . . Drone Launches 5 | . . . . . . . . 5 Drone Recoveries . | . . . . . . . . . Exploration | -11 -10 -10 -9 -9 -9 -8 -8 -8 ------------- Run | Yrd Mat Min Mat Min Exi Min Mat Gar Turns Passed 11694 | 129 1702 1028 3636 1479 736 89 757 2138 Spaces Moved 5946 | 84 927 667 1586 697 494 45 421 1025 Core 50 | 17 . . 30 . . . . 3 Treads 1 | . . . 1 . . . . . Legs . | . . . . . . . . . Wheels 5895 | 67 927 667 1555 697 494 45 421 1022 Hover . | . . . . . . . . . Flight . | . . . . . . . . . Fastest Speed 50 | 50 95 140 140 145 145 145 110 110 Average Speed 148 | 87 134 140 169 145 145 147 135 146 Slowest Speed 1150 | 100 140 140 950 155 145 155 155 1150 Overloaded Moves . | . . . . . . . . . Propulsion Burnouts . | . . . . . . . . . Robots Hopped . | . . . . . . . . . Potential Cave-ins . | . . . . . . . . . Cave-ins Triggered . | . . . . . . . . . Exploration Rate (%) 61 | 4 100 86 76 95 90 19 15 70 Regions Visited 8 Branch Regions 4 Pre-discovered Areas 3 | . . 1 . 1 1 . . . Known Exits Taken 2 | . . . 1 . . . 1 . Unknown Exits Taken 6 | 1 1 1 . 1 1 1 . . Scrap Searched 3 | . . 1 . 1 . 1 . . Spaces Dug 45 | . 4 . 19 12 . . 10 . Terrain Destroyed 249 | . 4 . 39 178 . . 13 15 Melee 23 | . 4 . 19 . . . . . Projectile 14 | . . . . . . . 13 1 AOE 212 | . . . 20 178 . . . 14 Terrain Rammed . | . . . . . . . . . Walls Destroyed . | . . . . . . . . . Machines Disabled . | . . . . . . . . . Actions | -11 -10 -10 -9 -9 -9 -8 -8 -8 --------- Run | Yrd Mat Min Mat Min Exi Min Mat Gar Total 7961 | 113 1236 721 2187 1092 510 56 544 1502 Wait 1050 | . 93 11 286 341 . 2 61 256 Move 5938 | 83 926 666 1585 696 493 44 420 1025 Hop . | . . . . . . . . . Pick Up 80 | 8 29 5 21 3 1 . 9 4 Fast Attach 47 | 7 12 1 13 1 . 1 6 6 Attach 34 | 1 4 2 10 3 . 2 2 10 Detach 6 | 1 2 . 1 . . . 1 1 Swap 67 | . 12 4 28 7 1 . 9 6 Drop 92 | . 20 8 40 2 2 . 9 11 Fire 455 | 13 69 23 159 39 . 2 27 123 Melee 47 | . 9 1 20 . 12 5 . . Ram . | . . . . . . . . . Kick . | . . . . . . . . . Crush . | . . . . . . . . . Escape Stasis 44 | . . . . . . . . 44 Rewire 1 | . . . . . 1 . . . Trap 100 | . 60 . 24 . . . . 16 Miscellaneous . | . . . . . . . . . Route ------- -11/Scrapyard -10/Materials (discovered 6 exits: *Mat x3 / *Min x2 / [*Sub]) -10/Mines (discovered 2 exits: *Mat / [*Sub]) -9/Materials (discovered 3 exits: *Mat x2 / *Min) -9/Mines (discovered 3 exits: *Mat x2 / *Exi) -9/Exiles (discovered 2 exits: [*Min x2]) -8/Mines -8/Materials -8/Garrison (discovered 2 exits: [*Fac x2]) History --------- Turn | Location | Event 12 | -11/Scrapyard | Discovered new exit (range 16) 130 | -11/Scrapyard | Entered Materials 197 | -10/Materials | Discovered new exit (range 16) 310 | -10/Materials | Build established: Mutant 419 | -10/Materials | Central database locked down 674 | -10/Materials | Discovered new exit (range 5) 678 | -10/Materials | Discovered new exit (range 4) 692 | -10/Materials | Discovered new exit (range 13) 1210 | -10/Materials | Discovered new exit (range 14) 1523 | -10/Materials | Discovered new exit (range 15) 1832 | -10/Materials | Entered Mines 1839 | -10/Mines | Core integrity fell below 50% 1871 | -10/Mines | Met a Derelict bent on vengeance 2131 | -10/Mines | Learned location of Recycling (-7) 2167 | -10/Mines | Found the Drone Emporium 2176 | -10/Mines | Found Prototype Device 2318 | -10/Mines | Discovered new exit (range 7) 2802 | -10/Mines | Discovered new exit (range 14) 2860 | -10/Mines | Entered Materials 2860 | -9/Materials | Evolved 2 slots: Propulsion x1, Utility x1 3841 | -9/Materials | Destroyed 7 combat bots 3850 | -9/Materials | Lost 3 parts (1p1n1u) 4206 | -9/Materials | Build established: Scavenger-Mutant 4745 | -9/Materials | Discovered new exit (range 10) 5134 | -9/Materials | Discovered new exit (range 3) 5260 | -9/Materials | First assault squad dispatched 5417 | -9/Materials | Build established: Mutant 5498 | -9/Materials | Core integrity fell below 50% 5594 | -9/Materials | Identified exit to Mines 5748 | -9/Materials | Discovered new exit (range 16) 5809 | -9/Materials | Build established: Scavenger-Mutant 6496 | -9/Materials | Entered Mines 6543 | -9/Mines | Learned location of Zion (-6) 6561 | -9/Mines | Discovered new exit (range 6) 6577 | -9/Mines | Discovered new exit (range 15) 6613 | -9/Mines | Received a Rocket Launcher from a helpful Derelict 6932 | -9/Mines | Assembled infested the area 7412 | -9/Mines | Lost 3 parts (2n1u) 7676 | -9/Mines | Build established: Mutant 7855 | -9/Mines | Deemed a non-threat by the Exiles lab entrance 7855 | -9/Mines | Discovered new exit (range 5) 7975 | -9/Mines | Entered Exiles 7997 | -9/Exiles | Discovered new exit (range 15) 8015 | -9/Exiles | Met 8R-AWN 8035 | -9/Exiles | Met EX-HEX 8145 | -9/Exiles | Met EX-DEC 8202 | -9/Exiles | Visited The Gauntlet 8428 | -9/Exiles | Met EX-BIN 8470 | -9/Exiles | Aligned with FarCom system 8472 | -9/Exiles | Given EX-Vault access code 8511 | -9/Exiles | Opened EX-Vault 8525 | -9/Exiles | Found Gui. Plasma Cannon 8576 | -9/Exiles | Warned to stay clear of 0b10 Research branches 8694 | -9/Exiles | Discovered new exit (range 14) 8711 | -9/Exiles | Left Exiles lab with Gui. Plasma Cannon 8711 | -9/Exiles | Entered Mines 8792 | -8/Mines | Discovered new exit (range 5) 8800 | -8/Mines | Entered Materials 8800 | -8/Materials | Evolved 2 slots: Utility x2 8814 | -8/Materials | Lost 3 parts (2n1w) 8881 | -8/Materials | Identified exit to Garrison 9081 | -8/Materials | Build established: Scavenger-Mutant 9497 | -8/Materials | Garrison activated, responded to threat 9557 | -8/Materials | Entered Garrison 9571 | -8/Garrison | Triggered checkpoint 10245 | -8/Garrison | Triggered checkpoint 10465 | -8/Garrison | Discovered new exit (range 12) 10555 | -8/Garrison | Rescued a captive Derelict 10832 | -8/Garrison | Triggered checkpoint 10909 | -8/Garrison | Triggered checkpoint 11209 | -8/Garrison | Discovered new exit (range 12) 11594 | -8/Garrison | Spotted B-75 Beast 11646 | -8/Garrison | Spotted B-75 Beast 11661 | -8/Garrison | Identified Bomb Drone Bay 11677 | -8/Garrison | Core integrity fell below 50% 11693 | -8/Garrison | Core integrity fell below 20% 11695 | -8/Garrison | Destroyed by B-75 Beast with Magnetic Acceleration Cannon Last Messages --------------- 11666_ B-75 Beast destroyed. 11666_ Gui. Plasma Cannon destroyed. 11667_ Bomb Drone released from Bomb Drone Bay. 11667_ Bomb Drone detonates. 11667_ Bomb Drone destroyed. 11667_ C-17 Slicer destroyed. 11667_ Bomb Drone Bay destroyed. 11667_ Critical hit (Meltdown: +310). 11670_ Knocked back. 11670_ Lgt. Treads destroyed. 11676_ Hcp. Matter Pod destroyed. 11679_ The unstable cave ceiling collapses. 11680_ Knocked back. 11682_ The unstable cave ceiling collapses. 11686_ Rocket Launcher destroyed. 11686_ Imp. Ion Engine destroyed. 11689_ Mni. Grenade Launcher destroyed. 11689_ System Shield destroyed. 11689_ Critical hit (Blast). 11692_ Knocked back. Map ----- +----------------------------------------------------+ | | | | | | | | | | | | | | | | | | | | | | | | | | | ?????????????????????????????????????????????????? | | ?????????????????????????????????????????????????? | | ???????????????????????###???###?????????????????? | | ????????????????????????[ ??? !??????????????????? | | ????????????????????????[ ??? !??????????????????? | | ????????????????????????# ### #??#???????????????? | | ????????????????????????# #?!????????????????? | | ????????????????????????? #!?????????????????? | | ????????????????????????? ??????????????????? | | ?????????????????????????? ???????????????????? | | ????????????????????####### ########?????????????? | | ?????????????????##?# % ##????????????? | | ?????????????????# # %%@ #????????????? | | ?????????????????# % #????????????? | | ?????????????????# + %= ####??????????? | | ?????????????????# +??????????? | | #####????????????# ####??????????? | | ?????????????# #?????????????? | | ??????????????# ##???????????+?? | | #??????????????# # #???????+?????? | | #??????????????#### BB ##?????????????? | | #?????????????????# BB #??????????????? | | #????????????????# #%* ??????????????? | | #????????????????# %%= ##?????????????? | | #????????????????# != # # ###????????????+?? | | #????????????????## = # ### #?????????+??????? | | #?????????????????### ??# #??????????????+?? | | #???????????????????# ##??# #????????????????? | | #?????????????????###% ##### #######??????????? | | #?????????????????# +????????+?? | | #?????????????????# % +??????????? | | #?????????????????# ## #############??????????? | | #?????????????????# ## #??????????????????????? | | #?????????????????# ## ########???????????????? | | #?????????????????# ## ]] !!#???????????????? | | #?????????????????# #####]] !!#???????????????? | | ^ #??????????????#### #######+#######???????????? | +----------------------------------------------------+ Best States ------------- Heat Dissipation 45 Energy Generation 14 Energy Capacity 280 Matter Stores 458 Matter Capacity 500 Sight Range 16 Robot Scan Range 14 Terrain Scan Density 10 Armor Coverage 150 Core Shielding 20 Weapon Shielding 33 Evasion (%) 50 Recoil Reduction 2 Offensive Hacking 10 Defensive Hacking 10 Item Schematics ----------------- Adv. Beam Cannon | -9/Materials | Scanalyzed Datajack | -9/Materials | Scanalyzed Robot Schematics ------------------ None Fabricated ------------ Nothing Repaired ---------- Nothing Alien Tech Used ----------------- None Achievements -------------- None Challenges ------------ None Game ------ Seed HackingCloakNukerbomber Manual? 0 Play Time 01:28:09 Cumulative 326.0 hours Start 2025.08.20 @ 14:49:01 End 2025.08.20 @ 20:12:47 Sessions 3 Manual Loads 0 Difficulty Rogue Special Mode None Game No. 283 Rogue 283 Adventurer 0 Explorer 0 Win Type - Total 2 Types 2/0/0/0/0/0/0/0/0/0 Lore% 73 Gallery% 66 Achievement% 53 Wizard Run 0 Options --------- Layout 2 ASCII 1 Keyboard 0 Movement Numpad Keybinds 0 Fullscreen 2 Font 32/TamsynBold Map View 50x44 Zoom Use 0% Tactical HUD 1 Map Filters NONE Filters NONE Steam 1 RUN: fcaf932d-a922-4aa6-976f-998ed0915b67